Cogmind - Beta 14 @@@ ROGUE MODE // 2024.11.23 @ 12:36:45 Player: Fangrelle Result: Destroyed by as-98567 with Assembled F-torch Performance ------------- Evolutions (0) 0 Regions Visited (2) 400 Robots Destroyed (22) 110 Value Destroyed (445) 445 Prototype IDs (0) 0 Alien Tech Used (0) 0 Bonus (0) 0 TOTAL SCORE: 955 Bonus ------- None Cogmind --------- Core Integrity 0/250 Matter 292/300 Energy 100/100 System Corruption 3% Temperature Cool (20) Movement Core (1350) Ox26 Location -10/Mines Parts ------- > --- POWER (1) -------- (None) > --- PROPULSION (2) --- (None) > --- UTILITY (2) ------ Huge Storage Unit > --- WEAPON (2) ------- (None) > --- INVENTORY (25) --- Light Ion Engine Aluminum Leg Compact Wheel Compact Wheel Large Storage Unit Huge Storage Unit High-capacity Matter Pod (15) Signal Interpreter Targeting Computer Light Armor Plating Light Armor Plating Light Armor Plating Light Armor Plating Small Laser Mining Laser Mining Laser Mining Claw Peak State ------------ > --- POWER ------------ Ion Engine > --- PROPULSION ------- Light Treads Light Treads > --- UTILITY ---------- Large Storage Unit Light Armor Plating > --- WEAPON ----------- EM Pulse Gun Light Assault Rifle > --- INVENTORY -------- Light Ion Engine Compact Wheel Compact Wheel Signal Interpreter Light Armor Plating Light Armor Plating Small Laser Grenade Launcher Mining Laser Mining Claw [Rating: 8] Favorites ----------- Power Ion Engine Engine Ion Engine Propulsion Light Treads Treads Light Treads Leg Aluminum Leg Utility Light Armor Plating Storage Large Storage Unit Protection Light Armor Plating Weapon Small Laser Energy Gun Small Laser Ballistic Gun Light Assault Rifle Ballistic Cannon Light Cannon Launcher Grenade Launcher Build | -11 -10 -10 ------- Run | Yrd Mat Min Slots Evolved . | . . . Power . | . . . Propulsion . | . . . Utility . | . . . Weapon . | . . . Parts Attached 17 | . 16 1 Power 2 | . 2 . Engine 2 | . 2 . Core . | . . . Reactor . | . . . Propulsion 2 | . 2 . Treads 2 | . 2 . Leg . | . . . Wheel . | . . . Hover . | . . . Flight . | . . . Utility 3 | . 3 . Device . | . . . Storage 2 | . 2 . Processor . | . . . Hackware . | . . . Protection 1 | . 1 . Artifact . | . . . Weapon 10 | . 9 1 Energy Gun 4 | . 4 . Energy Cannon . | . . . Ballistic Gun 1 | . 1 . Ballistic Cannon 3 | . 3 . Launcher 2 | . 1 1 Special Weapon . | . . . Impact Weapon . | . . . Slashing Weapon . | . . . Piercing Weapon . | . . . Special Melee Weapon . | . . . Unidentified Prototypes . | . . . Parts Lost 7 | . 1 6 Power 1 | . . 1 Propulsion 2 | . . 2 Utility 1 | . . 1 Weapon 3 | . 1 2 Highest Loss Streak 6 | . 1 6 To Critical Strikes . | . . . Average Slot Usage (%) 96 | . 95 99 Engine 13 | . 14 13 Treads 27 | . 28 27 Storage 14 | . 14 14 Protection 10 | . 9 13 Energy Gun 15 | . 17 13 Ballistic Gun 3 | . 4 . Ballistic Cannon 8 | . 5 13 Peak Build Rating 8 | . 8 8 Average Rating 7 | . 7 7 On Entrance 6 | 6 6 8 Naked Turns . | . . . Heaviest Build 94 | 12 92 94 Greatest Support 40 | 20 40 40 Greatest Overweight (x) 26 | . 2 26 Average Overweight (x) . | . . 2 Largest Inventory Capacity 25 | . 25 25 Average Capacity 18 | . 14 25 Most Carried 17 | . 17 17 Average Carried 13 | . 11 17 Final Capacity 25 | 8 25 25 Final Carried 17 | 6 17 17 Class Distribution -------------------- 100% | Mutant Dominant Class ---------------- Mutant | -10/Materials Mutant | -10/Mines Resources | -11 -10 -10 ----------- Run | Yrd Mat Min Matter Collected 470 | 200 221 49 Remotely . | . . . Salvage Created 489 | . 430 59 Parts 34 | . 32 2 Haulers Intercepted . | . . . Recyclers Shooed . | . . . Parts Field Recycled . | . . . Retrieved Matter . | . . . Parts Self-Destructed . | . . . Prevented . | . . . Kills | -11 -10 -10 ------- Run | Yrd Mat Min Combat Hostiles Destroyed 22 | . 17 5 Guns 8 | . 8 . Cannons 4 | . 3 1 AOE 10 | . 6 4 Classes Destroyed 6 | . 5 1 Worker 1 | . 1 . Operator 1 | . 1 . Watcher 2 | . 2 . Swarmer 9 | . 9 . Grunt 9 | . 8 1 Assembled 4 | . . 4 Best Kill Streak 9 | . 9 4 Combat Bots Only 8 | . 8 4 Max Kills in Single Turn 4 | . 4 2 Gunslinging 1 | . 1 . Exploded 4 | . 4 2 Melee . | . . . Uniques/NPCs Destroyed . | . . . Combat | -11 -10 -10 -------- Run | Yrd Mat Min Hostile Shots Fired 97 | . 64 33 Missed 27 | . 18 9 Damage Taken 1011 | . 523 488 Core 255 | . 65 190 Absorbed by Shields . | . . . Core Remaining (%) 100 | 100 . . Volleys Fired 44 | . 39 5 Largest 2 | . 2 2 Hottest 80 | . 80 75 Shots Fired 85 | . 75 10 Gun 62 | . 59 3 Cannon 18 | . 13 5 Launcher 5 | . 3 2 Special . | . . . Kinetic 30 | . 25 5 Thermal 18 | . 15 3 Explosive 5 | . 3 2 Electromagnetic 32 | . 32 . Robot Hit Streak 6 | . 6 2 Robot Miss Streak 8 | . 6 8 Penetration Max . | . . . Secondary Targets 1 | . 1 . Max Gunslinging Chain 1 | . 1 . Shots Hit Robots 42 | . 37 5 Core Hits 35 | . 28 7 Critical Kills . | . . . Critical Parts Destroyed . | . . . Critical Strikes . | . . . Melee Attacks . | . . . Impact . | . . . Slashing . | . . . Piercing . | . . . Sneak Attacks . | . . . Combat Hostiles . | . . . Follow-up Attacks . | . . . Damage Inflicted 1157 | . 917 240 Guns 385 | . 374 11 Cannons 144 | . 88 56 Explosions 619 | . 446 173 Melee . | . . . Ramming 9 | . 9 . Kinetic 186 | . 130 56 Thermal 203 | . 192 11 Explosive 504 | . 331 173 Electromagnetic 255 | . 255 . Impact . | . . . Slashing . | . . . Piercing . | . . . Highest Corruption 3 | . . 3 Average Corruption 3 | . . 3 Corruption Purged . | . . . Corruption Blocked . | . . . Overload Shots . | . . . Overflow Damage 52 | . 46 6 Projectiles . | . . . Explosions 52 | . 46 6 Melee . | . . . Knockbacks 2 | . 1 1 Impact . | . . . Kinetic 2 | . 1 1 Secondary . | . . . Self-Inflicted Damage 117 | . 52 65 Shots 4 | . 2 2 Rammed 2 | . 2 . Targets Rammed 2 | . 2 . Kicked . | . . . Crushed . | . . . Highest Temperature 358 | . 358 84 Average Temperature 77 | . 81 44 Received Heat Transfer 224 | . 132 92 Effects 1 | . 1 . Energy Bleed 1 | . 1 . Siege Activations . | . . . Robots Corrupted . | . . . Combat Hostiles . | . . . Parts Fried . | . . . Impact Corruptions . | . . . Robots Melted . | . . . Combat Hostiles . | . . . Parts Melted . | . . . Heat Transferred 400 | . 375 25 Parts Sabotaged . | . . . Parts Stolen . | . . . Parts Stripped . | . . . Power Chain Reactions 2 | . 2 . Alert | -11 -10 -10 ------- Run | Yrd Mat Min Peak Influence 386 | . 386 108 Initial 73 | . . 73 Average 153 | . 219 34 Maximum Alert Level 1 | . 1 . Low Security (%) 67 | . 50 100 Level 1 32 | . 50 . Level 2 . | . . . Level 3 . | . . . Level 4 . | . . . Level 5 . | . . . High Security . | . . . Max Security . | . . . Squads Dispatched 3 | . 3 . Investigation 2 | . 2 . Extermination . | . . . Reinforcement 1 | . 1 . Assault . | . . . Garrison . | . . . Intercept . | . . . Searches Triggered . | . . . Construction Impeded . | . . . Haulers Reinforced . | . . . Active Scanning Responses . | . . . Cargo Convoy Interrupts . | . . . Stealth | -11 -10 -10 --------- Run | Yrd Mat Min Distress Signals 2 | . 2 . Communications Jammed . | . . . Distress Signals . | . . . Times Spotted 42 | . 23 19 Peak Tracking Total 11 | . 10 11 Tactical Retreats 3 | . 2 1 Traps | -11 -10 -10 ------- Run | Yrd Mat Min Traps Triggered 4 | . 4 . Indirectly . | . . . Trap Hack Attempts . | . . . Triggered . | . . . Disarmed . | . . . Reprogrammed . | . . . Reused . | . . . Traps Extracted . | . . . Installed . | . . . Triggered . | . . . Machines | -11 -10 -10 ---------- Run | Yrd Mat Min Machines Disabled 1 | . 1 . Max in Single Turn 1 | . 1 . Machines Repaired . | . . . Machines Dismantled . | . . . Machines Sabotaged . | . . . Overloaded Fab Kills . | . . . Hacking | -11 -10 -10 --------- Run | Yrd Mat Min Machines Accessed 9 | . 9 . Terminals 7 | . 7 . Fabricators . | . . . Repair Stations . | . . . Recycling Units 2 | . 2 . Scanalyzers . | . . . Garrison Access . | . . . Total Hacks 33 | . 33 . Successful 18 | . 18 . Failed 15 | . 15 . Catastrophic 2 | . 2 . Database Lockouts . | . . . Manual 29 | . 29 . Terminals 27 | . 27 . Fabricators . | . . . Repair Stations . | . . . Recycling Units 6 | . 6 . Scanalyzers . | . . . Garrison Access . | . . . Terminal Hacks 3 | . 3 . Robot Analysis 3 | . 3 . Fabricator Hacks . | . . . Repair Station Hacks . | . . . Recycling Unit Hacks 2 | . 2 . Retrieve Components 2 | . 2 . Scanalyzer . | . . . Garrison Access Hacks . | . . . Unauthorized Hacks 13 | . 13 . Terminals 11 | . 11 . Assimilate 2 | . 2 . Botnet 7 | . 7 . Operators 1 | . 1 . Skim 1 | . 1 . Fabricators . | . . . Repair Stations . | . . . Recycling Units 2 | . 2 . Tunnel 2 | . 2 . Scanalyzers . | . . . Garrison Access . | . . . Data Cores Recovered . | . . . Used . | . . . Hacking Detections 8 | . 8 . Full Trace Events 1 | . 1 . Feedback Events . | . . . Feedback Blocked . | . . . Robot Schematics Acquired . | . . . Robots Built . | . . . Authchips . | . . . Time . | . . . Total Robot Build Rating . | . . . Part Schematics Acquired . | . . . Parts Built . | . . . Authchips . | . . . Time . | . . . Total Part Build Rating . | . . . Parts Repaired . | . . . Time . | . . . Parts Recycled . | . . . Recycled Matter . | . . . Retrieved Matter . | . . . Retrieved Components 9 | . 9 . Parts Scanalyzed . | . . . Part Schematics Acquired . | . . . Parts Damaged . | . . . Bothacking | -11 -10 -10 ------------ Run | Yrd Mat Min Used RIF Installer . | . . . Robots Hacked . | . . . Non-combat . | . . . Combat . | . . . Robot Hacks Applied . | . . . Relay Couplers Released . | . . . Fabnet Peak Effective % . | . . . Robots Rewired . | . . . Allies Hacked . | . . . Hacks Repelled . | . . . Allies | -11 -10 -10 -------- Run | Yrd Mat Min Total Allies . | . . . Largest Group . | . . . Highest-Rated Group . | . . . Highest-Rated Ally . | . . . Total Orders . | . . . Ally Attacks . | . . . Total Damage . | . . . Kills . | . . . Allies Corrupted . | . . . Allies Melted . | . . . Intel | -11 -10 -10 ------- Run | Yrd Mat Min Robot Analysis Total 3 | . 3 . Derelict Logs Recovered 2 | . . 2 Drone Launches . | . . . Drone Recoveries . | . . . Exploration | -11 -10 -10 ------------- Run | Yrd Mat Min Turns Passed 2465 | . 1580 885 Spaces Moved 1109 | 1 838 270 Core 1 | . . 1 Treads 1107 | . 838 269 Legs 1 | 1 . . Wheels . | . . . Hover . | . . . Flight . | . . . Fastest Speed 120 | 120 160 320 Average Speed 205 | 120 167 323 Slowest Speed 1350 | 120 320 1350 Overloaded Moves . | . . . Propulsion Burnouts . | . . . Robots Hopped . | . . . Cave-ins Triggered . | . . . Exploration Rate (%) 50 | 1 94 57 Regions Visited 2 Branch Regions 1 Pre-discovered Areas 3 | . 2 1 Known Exits Taken . | . . . Unknown Exits Taken 2 | 1 1 . Scrap Searched . | . . . Spaces Dug . | . . . Terrain Destroyed 36 | . 21 15 Melee . | . . . Projectile . | . . . AOE 36 | . 21 15 Terrain Rammed . | . . . Walls Destroyed . | . . . Machines Disabled . | . . . Actions | -11 -10 -10 --------- Run | Yrd Mat Min Total 1215 | . 939 276 Wait 23 | . 23 . Move 1107 | . 837 270 Hop . | . . . Pick Up 16 | . 16 . Fast Attach 4 | . 4 . Attach 4 | . 4 . Detach . | . . . Swap 9 | . 8 1 Drop 6 | . 6 . Fire 44 | . 39 5 Melee . | . . . Ram . | . . . Kick . | . . . Crush 2 | . 2 . Escape Stasis . | . . . Rewire . | . . . Trap . | . . . Miscellaneous . | . . . Route ------- -11/Scrapyard -10/Materials (discovered 4 exits: [*Mat x2] / [*Min x2]) -10/Mines (discovered 3 exits: [*Mat x2] / [*Sub]) History --------- Turn | Location | Event 1 | -11/Scrapyard | Discovered new exit (range 0) 1 | -11/Scrapyard | Entered Materials 100 | -10/Materials | Discovered new exit (range 2) 305 | -10/Materials | Build established: Mutant 345 | -10/Materials | Discovered new exit (range 11) 391 | -10/Materials | Discovered new exit (range 7) 432 | -10/Materials | Destroyed 8 combat bots 768 | -10/Materials | Discovered new exit (range 16) 1581 | -10/Materials | Entered Mines 1584 | -10/Mines | Met a Derelict bent on vengeance 1604 | -10/Mines | Discovered new exit (range 7) 1642 | -10/Mines | Learned location of Zion (-7) 2128 | -10/Mines | Discovered new exit (range 9) 2182 | -10/Mines | Learned Materials interactive machine intel 2205 | -10/Mines | Discovered new exit (range 15) 2401 | -10/Mines | Assembled infested the area 2433 | -10/Mines | Received a Rocket Launcher from a helpful Derelict 2463 | -10/Mines | Core integrity fell below 50% 2465 | -10/Mines | Core integrity fell below 20% 2466 | -10/Mines | Destroyed by as-98567 with Assembled F-torch Last Messages --------------- 02434_ as-51931 destroyed. 02437_ as-33713 destroyed. 02438_ D-53 Grenadier destroyed. 02438_ R-06 Scavenger destroyed. 02445_ The unstable cave ceiling collapses. 02448_ K-01 Serf destroyed. 02452_ Lgt. Treads destroyed. 02452_ Ion Engine destroyed. 02452_ System corrupted by crushing effect (+3). 02453_ as-20577 destroyed. 02453_ Lgt. Treads destroyed. 02453_ Destroyed Lgt. Treads. 02453_ as-05787 destroyed. 02456_ as-27651 knocked back. 02456_ as-26045 destroyed. 02456_ as-74601 destroyed. 02456_ Grenade Launcher destroyed. 02457_ The unstable cave ceiling collapses. 02457_ Lgt. Cannon destroyed. 02457_ Lgt. Armor Plating destroyed. Map ----- +----------------------------------------------------+ | ?????????????????????????????????????????????????? | | ?????????????????????????????????????????????????? | | ?????????????????????????????????????????????????? | | ?????????????????????????????????????????????????? | | ????????????????????????????????????#????????????? | | ???????????????????????????????????? ????????????? | | ???????????????????????????????????? ????????????? | | ?????????????????????????????????# # ????????????? | | ????????????????????????????????# #??????????? | | ??????????????? ????????????### ?????????? | | ??????????????? ?????????## ?????????? | | ????????????????" ????????# # #?????????? | | ???????????????"" ???????# !% ??????????? | | ??????????????""" ###????# % ???????????? | | ????????????? #????# #???????????? | | ?????????????? ##### # #???????????? | | ?????????????????# ## #???????????? | | ??????????????????# #### #???????????? | | ??????????????????# a ##?## ###?????????? | | ??????????????????# a ##?## ##????????? | | ??????????????????## # a aa##?## #????????? | | ???????????????????# ?## % #### #????????? | | ???????????????????# # # #????????? | | ???????????????????# # # #????????? | | ???????????????????# = aa # #????????? | | ???????????????????#### @ ## ###??????? | | ??????????????????????###] ##### ##?????? | | ????????????????????????# #???### #?????? | | ????????????????????????# #?????## ####### | | ???????????????????????? #??????# | | ???????????????????????? ??????## | | ??????????????????????? ??????## #### ### | | ??????????????????????? ????## ##### #?? | | ???????????????????????## ???## ### ##? | | ????????????????????????## ??## ### ## | | ??????????????????????????###### ### | | ???????????????????????????# ## ### | | ? #????????????????????????# ### ### ##?? | | ? #????????????????####???# #?###### #?## #??? | | ? ??????########### ##?## ##?????# #??# #??? | | ? ##????# ### #?????# #??# #??? | | ?? ###??# #?????# #### #??? | | ?? #??# ######## #?????# # #??? | | ?? ??# #??????## ##?????# # #??? | | ?? ???# #???????# # ##??????# # ####??? | | ??# ???# ##??????# ## ##????#### # #?????? | | ?## ????# ##?????# #####?????# # #?????? | | ?# ???## ##?#### #?????????# # ##????? | | ## #???# ### ###???????# ### #????? | | # #???## ## ##??????# ##???? | +----------------------------------------------------+ Best States ------------- Heat Dissipation 25 Energy Generation 10 Energy Capacity 250 Matter Stores 300 Matter Capacity 300 Sight Range 16 Terrain Scan Density 10 Armor Coverage 150 Evasion (%) 40 Recoil Reduction 2 Item Schematics ----------------- None Robot Schematics ------------------ None Fabricated ------------ Nothing Alien Tech Used ----------------- None Achievements -------------- None Challenges ------------ None Game ------ Seed DrainedSpectralMallet Manual? 0 Play Time 00:13:32 Cumulative 127.9 hours Start 2024.11.23 @ 09:24:27 End 2024.11.23 @ 12:36:45 Sessions 1 Manual Loads 0 Difficulty Rogue Special Mode None Game No. 238 Rogue 238 Adventurer 0 Explorer 0 Win Type - Total 0 Types 0/0/0/0/0/0/0/0/0 Lore% 43 Gallery% 40 Achievement% 36 Wizard Run 0 Options --------- Layout 0 ASCII 0 Keyboard 0 Movement Mouse Keybinds 0 Fullscreen 1 Font 24/Smallcaps Map View 91x25 Zoom Use 87% Tactical HUD 1 Map Filters NONE Filters NONE Steam 1 RUN: 161fb8d3-bd9f-4a86-88bb-2bff9501ced6